Department Family,Entity,Date of Payment,Expense Type,Expense Area,Supplier,Voluntary & Community Sector,SME Class,Sole Trader,Transaction number,Purchasing Item Text,Postal Code,Amount in Sterling,Grant?
DLUHC,PINS,01/12/2023,Agency Staff,Finance,HAYS SPECIALIST RECRUITMENT LTD,,Large,,5106304644,Contingent Labour,NW1 2AF,"3,537.66",
DLUHC,PINS,01/12/2023,DEV Exp (AUC) Intngble Software Acq Cost,PINS Capital X085A011,HAYS SPECIALIST RECRUITMENT LTD,,Large,,5106304645,CMS Developer  ,NW1 2AF,"3,385.08",
DLUHC,PINS,01/12/2023,DEV Exp (AUC) Intngble Software Acq Cost,PINS Capital X085A011,HAYS SPECIALIST RECRUITMENT LTD,,Large,,5106304657,Business Analyst  ,NW1 2AF,"2,343.17",
DLUHC,PINS,01/12/2023,"IT - PC, Network & Hardware",Digital Services,X M A LTD,,Data Not Provided,,5106304664,Hardware & Hardware Services,NG11 7EP,999.60,
DLUHC,PINS,01/12/2023,IT Maintenance,Digital Services,X M A LTD,,Data Not Provided,,5106304664,Hardware & Hardware Services,NG11 7EP,833.00,
DLUHC,PINS,04/12/2023,Catering,Finance,YORK CVS,Yes,Small,,5106304673,Catering,YO1 6ET,496.00,
DLUHC,PINS,04/12/2023,Conferences and Meeting Facilities,Inspectors Costs,YORK CVS,Yes,Small,,5106304673,Venue Hire,YO1 6ET,"1,150.00",
DLUHC,PINS,04/12/2023,PADS Fees & Expenses,Inspectors Costs,REDACTED,,Micro,,5106304720,PADS Fees and Expenses,BA4 9DN,"2,137.68",
DLUHC,PINS,04/12/2023,PADS Fees & Expenses,Inspectors Costs,REDACTED,,Micro,,5106304721,PADS Fees and Expenses,TA14 6PT,"2,339.85",
DLUHC,PINS,04/12/2023,Software Licences,Digital Services,PHOENIX SOFTWARE,,Medium,,5106304711,Camtasia Licenses ,YO42 1NS,394.27,
DLUHC,PINS,04/12/2023,Vehicle hire,Inspectors Costs,ENTERPRISE RENT-A-CAR,,Large,,2100116809,Damage to Hire Car,TW20 9FB,"-1,514.12",
DLUHC,PINS,04/12/2023,Vehicle hire,Inspectors Costs,ENTERPRISE RENT-A-CAR,,Large,,5106304733,Damage to Hire Car,TW20 9FB,"1,514.12",
DLUHC,PINS,05/12/2023,Agency Staff,Resourcing & Process,REED SPECIALIST RECRUITMENT LTD,,Large,,5106304756,Contingent Labour,SW20 0BA,735.80,
DLUHC,PINS,05/12/2023,Agency Staff,Finance,REED SPECIALIST RECRUITMENT LTD,,Large,,5106304791,Contingent Labour,SW20 0BA,905.72,
DLUHC,PINS,05/12/2023,Conferences and Meeting Facilities,Inspectors Costs,Protec European Events Ltd,,Medium,,5106304732,AV Services,B37 7HE,"3,817.50",
DLUHC,PINS,05/12/2023,IT at cost,PINS Capital X085A011,X M A LTD,,Data Not Provided,,5106304760,Dell Monitor S2722DZ,NG11 7EP,"7,946.74",
DLUHC,PINS,05/12/2023,IT at cost,PINS Capital X085A011,X M A LTD,,Data Not Provided,,5106304762,Surface Pro Tablet - QFI-00003,NG11 7EP,"15,676.74",
DLUHC,PINS,05/12/2023,IT Maintenance,Digital Services,X M A LTD,,Data Not Provided,,5106304766,Surface Slim Pens & Cover 8X8-00003,NG11 7EP,"1,920.38",
DLUHC,PINS,05/12/2023,Legal Fees,Innovation & Improvement,GOVERNMENT LEGAL DEPT,,Public Bodies,,5106304731,Disbursements,WC2B 4TS,"22,914.66",
DLUHC,PINS,05/12/2023,Legal Fees,Innovation & Improvement,GOVERNMENT LEGAL DEPT,,Public Bodies,,5106304731,Fees & Charges,WC2B 4TS,"74,567.70",
DLUHC,PINS,05/12/2023,PADS Fees & Expenses,Inspectors Costs,REDACTED,,Data Not Provided,,5106304778,PADS Fees and Expenses,LU1 1PP,"2,398.56",
DLUHC,PINS,05/12/2023,PADS Fees & Expenses,Inspectors Costs,REDACTED,,Data Not Provided,,5106304783,PADS Fees and Expenses,LU1 1PP,"1,824.00",
DLUHC,PINS,05/12/2023,PADS Fees & Expenses,Inspectors Costs,REDACTED,,Data Not Provided,,5106304746,PADS Fees and Expenses,BH14 8AL,"3,547.92",
DLUHC,PINS,05/12/2023,PADS Fees & Expenses,Inspectors Costs,REDACTED,,Micro,,5106304777,PADS Fees and Expenses,PO20 0HX,"1,528.56",
DLUHC,PINS,05/12/2023,PADS Fees & Expenses,Inspectors Costs,REDACTED,,Micro,,5106304749,PADS Fees and Expenses,HG4 1UJ,"3,793.67",
DLUHC,PINS,05/12/2023,PADS Fees & Expenses,Inspectors Costs,REDACTED,,Data Not Provided,,5106304796,PADS Fees and Expenses,EC4Y 7AR,90.00,
DLUHC,PINS,05/12/2023,PADS Fees & Expenses,Inspectors Costs,REDACTED,,Data Not Provided,,5106304796,PADS Fees and Expenses,EC4Y 7AR,"2,184.00",
DLUHC,PINS,05/12/2023,Rent,Change Portfolio Workstreams,Science Research Foundation,,Small,,5106304748,12-month contract: 04/09/2023-03/09/2024,BS1 6QH,"17,400.00",
DLUHC,PINS,05/12/2023,Vehicle hire,Inspectors Costs,ENTERPRISE RENT-A-CAR,,Large,,5106304767,Damage to Hire Car,TW20 9FB,"1,514.12",
DLUHC,PINS,06/12/2023,Agency Staff,Innovation & Improvement,HAYS SPECIALIST RECRUITMENT LTD,,Large,,5106304642,Contingent Labour,NW1 2AF,288.00,
DLUHC,PINS,06/12/2023,Agency Staff,Innovation & Improvement,REED SPECIALIST RECRUITMENT LTD,,Large,,5106304527,Contingent Labour,SW20 0BA,721.14,
DLUHC,PINS,06/12/2023,Agency Staff,Innovation & Improvement,REED SPECIALIST RECRUITMENT LTD,,Large,,5106304534,Contingent Labour,SW20 0BA,721.14,
DLUHC,PINS,06/12/2023,Agency Staff,Innovation & Improvement,REED SPECIALIST RECRUITMENT LTD,,Large,,5106304744,Contingent Labour,SW20 0BA,721.14,
DLUHC,PINS,06/12/2023,Agency Staff,Innovation & Improvement,REED SPECIALIST RECRUITMENT LTD,,Large,,5106304758,Contingent Labour,SW20 0BA,721.14,
DLUHC,PINS,06/12/2023,DEV Exp (AUC) Intngble Software Acq Cost,PINS Capital X085A011,LA INTERNATIONAL COMP CONSULTANTS L,,Large,,5106304752,Software Developer,ST1 5UB,"15,540.00",
DLUHC,PINS,06/12/2023,IT - Service Contracts,Digital Services,tmc3 Limited,,Small,,5106304797,Cyber Security as a Service,L18 2DA,"7,362.50",
DLUHC,PINS,06/12/2023,Mobile phone costs,Digital Services,ORBIS PROTECT,,Large,,5106304737,Lone Worker Protection,UB8 1QG,"2,298.96",
DLUHC,PINS,06/12/2023,Mobile phone costs,Digital Services,ORBIS PROTECT,,Large,,5106304818,Lone Worker Protection,UB8 1QG,"2,016.00",
DLUHC,PINS,06/12/2023,PADS Fees & Expenses,Inspectors Costs,REDACTED,,Small,,5106304806,PADS Fees and Expenses,RG41 3HL,"2,988.84",
DLUHC,PINS,06/12/2023,PADS Fees & Expenses,Inspectors Costs,REDACTED,,Micro,,5106304747,PADS Fees and Expenses,BB4 8TB,"2,244.10",
DLUHC,PINS,06/12/2023,PADS Fees & Expenses,Inspectors Costs,REDACTED,,Micro,,5106304805,PADS Fees and Expenses,BH15 1HH,"3,010.08",
DLUHC,PINS,06/12/2023,Vehicle hire,Inspectors Costs,ENTERPRISE RENT-A-CAR,,Large,,5106304815,Car Hire 23/24,TW20 9FB,"32,773.39",
DLUHC,PINS,06/12/2023,Vehicle hire,Inspectors Costs,ENTERPRISE RENT-A-CAR,,Large,,5106304815,Car Hire 23/24 zero VAT,TW20 9FB,20.00,
DLUHC,PINS,06/12/2023,Web Services,Digital Services,ZSAH LTD,,Small,,5106304745,Hosting 23-24,SW7 3HE,"1,943.36",
DLUHC,PINS,07/12/2023,Agency Staff,Finance,REED SPECIALIST RECRUITMENT LTD,,Large,,5106304736,Contingent Labour,SW20 0BA,653.20,
DLUHC,PINS,07/12/2023,Agency Staff,Finance,REED SPECIALIST RECRUITMENT LTD,,Large,,5106304755,Contingent Labour,SW20 0BA,"1,764.00",
DLUHC,PINS,07/12/2023,Conferences and Meeting Facilities,Inspectors Costs,CALDER CONFERENCES LIMITED,,Small,,5106304857,BCEC Venue Hire,LS16 6RF,"1,802.00",
DLUHC,PINS,08/12/2023,DEV Exp (AUC) Intngble Software Acq Cost,PINS Capital X085A011,HAYS SPECIALIST RECRUITMENT LTD,,Large,,5106304804,Software Tester,NW1 2AF,"2,242.14",
DLUHC,PINS,08/12/2023,PADS Fees & Expenses,Inspectors Costs,REDACTED,,Small,,5106304849,PADS Fees and Expenses,RH7 6RH,"3,275.25",
DLUHC,PINS,08/12/2023,PADS Fees & Expenses,Inspectors Costs,REDACTED,,Small,,5106304876,PADS Fees and Expenses,B73 6TD,"2,616.50",
DLUHC,PINS,08/12/2023,PADS Fees & Expenses,Inspectors Costs,REDACTED,,Micro,,5106304885,PADS Fees and Expenses,DY12 2AE,456.00,
DLUHC,PINS,08/12/2023,Physical Storage,Finance,Restore PLC,,Large,,2100117153,Offsite file storage 2022-2023,RH1 5DY,"-1,821.11",
DLUHC,PINS,08/12/2023,Physical Storage,Finance,Restore PLC,,Large,,5106304955,Offsite file storage 2022-2023,RH1 5DY,"1,821.11",
DLUHC,PINS,11/12/2023,Agency Staff,Human Resources,HAYS SPECIALIST RECRUITMENT LTD,,Large,,5106304997,Contingent Labour,NW1 2AF,418.21,
DLUHC,PINS,11/12/2023,Agency Staff,Innovation & Improvement,HAYS SPECIALIST RECRUITMENT LTD,,Large,,5106305005,Contingent Labour,NW1 2AF,720.00,
DLUHC,PINS,11/12/2023,Agency Staff,Finance,HAYS SPECIALIST RECRUITMENT LTD,,Large,,5106305006,Contingent Labour,NW1 2AF,"2,830.13",
DLUHC,PINS,11/12/2023,Agency Staff,Digital Services,HAYS SPECIALIST RECRUITMENT LTD,,Large,,5106305008,Contingent Labour,NW1 2AF,"2,102.94",
DLUHC,PINS,11/12/2023,Agency Staff,Digital Services,HAYS SPECIALIST RECRUITMENT LTD,,Large,,5106305003,Contingent Labour,NW1 2AF,"2,993.28",
DLUHC,PINS,11/12/2023,DEV Exp (AUC) Intngble Software Acq Cost,PINS Capital X085A011,HAYS SPECIALIST RECRUITMENT LTD,,Large,,5106304947,Test Engineer,NW1 2AF,"2,392.14",
DLUHC,PINS,11/12/2023,DEV Exp (AUC) Intngble Software Acq Cost,PINS Capital X085A011,HAYS SPECIALIST RECRUITMENT LTD,,Large,,5106304948,Interaction Designer ,NW1 2AF,"3,911.28",
DLUHC,PINS,11/12/2023,DEV Exp (AUC) Intngble Software Acq Cost,PINS Capital X085A011,HAYS SPECIALIST RECRUITMENT LTD,,Large,,5106304949,Software Developer,NW1 2AF,"3,611.28",
DLUHC,PINS,11/12/2023,DEV Exp (AUC) Intngble Software Acq Cost,PINS Capital X085A011,HAYS SPECIALIST RECRUITMENT LTD,,Large,,5106304950,Software Tester,NW1 2AF,"2,104.14",
DLUHC,PINS,11/12/2023,DEV Exp (AUC) Intngble Software Acq Cost,PINS Capital X085A011,HAYS SPECIALIST RECRUITMENT LTD,,Large,,5106304996,Software Tester,NW1 2AF,"2,104.14",
DLUHC,PINS,11/12/2023,DEV Exp (AUC) Intngble Software Acq Cost,PINS Capital X085A011,HAYS SPECIALIST RECRUITMENT LTD,,Large,,5106304998,Lead Product Manager  ,NW1 2AF,"4,635.42",
DLUHC,PINS,11/12/2023,DEV Exp (AUC) Intngble Software Acq Cost,PINS Capital X085A011,HAYS SPECIALIST RECRUITMENT LTD,,Large,,5106305001,Business Analyst  ,NW1 2AF,"2,343.17",
DLUHC,PINS,11/12/2023,DEV Exp (AUC) Intngble Software Acq Cost,PINS Capital X085A011,HAYS SPECIALIST RECRUITMENT LTD,,Large,,5106305012,CMS Developer  ,NW1 2AF,"3,385.08",
DLUHC,PINS,11/12/2023,IT - Software Maintenance,Digital Services,PHOENIX SOFTWARE,,Medium,,5106304987,OpenText Horizon Support,YO42 1NS,"538,094.65",
DLUHC,PINS,11/12/2023,IT - Software Maintenance,Digital Services,PHOENIX SOFTWARE,,Medium,,5106304990,OpenText Horizon Support,YO42 1NS,"22,063.70",
DLUHC,PINS,11/12/2023,Mobile phone costs,Digital Services,DAISY CORPORATE SERVICES TRADING LT,,Large,,5106305009,MiFi Costs,BB9 5SR,811.20,
DLUHC,PINS,11/12/2023,Mobile phone costs,Digital Services,DAISY CORPORATE SERVICES TRADING LT,,Large,,5106305010,Mobile Costs,BB9 5SR,"2,767.64",
DLUHC,PINS,11/12/2023,Office machinery consumables,Finance,BANNER BUSINESS SUPPLIES LTD,,Large,,5106305014,IT Consumables 2023/2024,S9 1XU,"8,780.71",
DLUHC,PINS,11/12/2023,Office Supplies,Finance,BANNER BUSINESS SUPPLIES LTD,,Large,,5106305014,Paper 2023/2024,S9 1XU,"3,327.60",
DLUHC,PINS,11/12/2023,Office Supplies,Finance,BANNER BUSINESS SUPPLIES LTD,,Large,,5106305014,Stationery 2023/2024,S9 1XU,"1,708.24",
DLUHC,PINS,11/12/2023,PADS Fees & Expenses,Inspectors Costs,REDACTED,,Data Not Provided,,5106305013,PADS Fees and Expenses,IP10 0ET,"3,146.00",
DLUHC,PINS,11/12/2023,PADS Fees & Expenses,Inspectors Costs,REDACTED,,Small,,5106304963,PADS Fees and Expenses,E1 1LQ,"3,230.00",
DLUHC,PINS,11/12/2023,Rent,Change Portfolio Workstreams,Science Research Foundation,,Small,,5106305004,12-month contract: 04/09/2023-03/09/2024,BS1 6QH,"17,400.00",
DLUHC,PINS,11/12/2023,Specialist Technical Support,Project Speed,HAYS SPECIALIST RECRUITMENT LTD,,Large,,5106305002,Data Architect,NW1 2AF,"4,375.32",
DLUHC,PINS,11/12/2023,Travel and Subsistence Account,Inspectors Costs,CORPORATE TRAVEL MANAGEMENT(NORTH)L,,Small,,5106304991,Hotel Accommodation June 2022,BD1 5HQ,869.20,
DLUHC,PINS,11/12/2023,Travel and Subsistence Account,Inspectors Costs,CORPORATE TRAVEL MANAGEMENT(NORTH)L,,Small,,5106304991,Hotel Fees,BD1 5HQ,5.28,
DLUHC,PINS,11/12/2023,Travel and Subsistence Account,Inspectors Costs,CORPORATE TRAVEL MANAGEMENT(NORTH)L,,Small,,5106305000,Air Travel,BD1 5HQ,559.74,
DLUHC,PINS,11/12/2023,Travel and Subsistence Account,Inspectors Costs,CORPORATE TRAVEL MANAGEMENT(NORTH)L,,Small,,5106305000,Ferry Travel,BD1 5HQ,100.50,
DLUHC,PINS,11/12/2023,Travel and Subsistence Account,Inspectors Costs,CORPORATE TRAVEL MANAGEMENT(NORTH)L,,Small,,5106305000,Hotel Accommodation,BD1 5HQ,"139,548.25",
DLUHC,PINS,11/12/2023,Travel and Subsistence Account,Inspectors Costs,CORPORATE TRAVEL MANAGEMENT(NORTH)L,,Small,,5106305000,Hotel Fees,BD1 5HQ,4.56,
DLUHC,PINS,11/12/2023,Travel and Subsistence Account,Inspectors Costs,CORPORATE TRAVEL MANAGEMENT(NORTH)L,,Small,,5106305000,Rail Travel,BD1 5HQ,"55,332.10",
DLUHC,PINS,11/12/2023,Travel and Subsistence Account,Inspectors Costs,CORPORATE TRAVEL MANAGEMENT(NORTH)L,,Small,,5106305000,Web Transactions,BD1 5HQ,555.14,
DLUHC,PINS,12/12/2023,Advertising,Operations Group 2,PeopleScout Limited,,Large,,5106305073,Statutory Advertising  ,W1T 7RQ,361.74,
DLUHC,PINS,12/12/2023,Agency Staff,Finance,REED SPECIALIST RECRUITMENT LTD,,Large,,5106305028,Contingent Labour,SW20 0BA,"1,764.00",
DLUHC,PINS,12/12/2023,Agency Staff,Finance,REED SPECIALIST RECRUITMENT LTD,,Large,,5106305039,Contingent Labour,SW20 0BA,736.85,
DLUHC,PINS,12/12/2023,Agency Staff,Finance,REED SPECIALIST RECRUITMENT LTD,,Large,,5106305078,Contingent Labour,SW20 0BA,653.20,
DLUHC,PINS,12/12/2023,DEV Exp (AUC) Intngble Software Acq Cost,PINS Capital X085A011,Zoonou Limited,,Small,,5106304845,Accessibility Testing,BN21 3UH,"1,320.00",
DLUHC,PINS,12/12/2023,DEV Exp (AUC) Intngble Software Acq Cost,PINS Capital X085A011,Zoonou Limited,,Small,,5106304845,Project Management,BN21 3UH,192.00,
DLUHC,PINS,12/12/2023,IT at cost,PINS Capital X085A011,X M A LTD,,Data Not Provided,,5106305089,Dell Monitor S2722DC,NG11 7EP,"8,176.32",
DLUHC,PINS,12/12/2023,IT Maintenance,Digital Services,X M A LTD,,Data Not Provided,,5106305044,Tech Refresh via XMA: 4 Year Surface Lap,NG11 7EP,"86,021.26",
DLUHC,PINS,12/12/2023,IT Maintenance,Digital Services,X M A LTD,,Data Not Provided,,5106305044,Tech Refresh via XMA: 4 Year Surface Pro,NG11 7EP,"23,523.24",
DLUHC,PINS,12/12/2023,Office machinery consumables,Finance,BANNER BUSINESS SUPPLIES LTD,,Large,,5106305086,IT Consumables 2023/2024,S9 1XU,"9,716.68",
DLUHC,PINS,12/12/2023,Office Supplies,Finance,BANNER BUSINESS SUPPLIES LTD,,Large,,5106305086,Paper 2023/2024,S9 1XU,"5,438.59",
DLUHC,PINS,12/12/2023,Office Supplies,Finance,BANNER BUSINESS SUPPLIES LTD,,Large,,5106305086,Stationery 2023/2024,S9 1XU,"2,369.89",
DLUHC,PINS,12/12/2023,PADS Fees & Expenses,Inspectors Costs,REDACTED,,Data Not Provided,,5106305017,PADS Fees and Expenses,CV21 3JN,"1,720.80",
DLUHC,PINS,12/12/2023,PADS Fees & Expenses,Inspectors Costs,REDACTED,,Micro,,5106305022,PADS Fees and Expenses,DE4 2JP,"1,433.06",
DLUHC,PINS,12/12/2023,PADS Fees & Expenses,Inspectors Costs,REDACTED,,Small,,5106305018,PADS Fees and Expenses,SE5 9LH,"2,952.00",
DLUHC,PINS,13/12/2023,Agency Staff,Digital Services,LA INTERNATIONAL COMP CONSULTANTS L,,Large,,5106305103,Contingent Labour,ST1 5UB,"12,000.00",
DLUHC,PINS,13/12/2023,Agency Staff,Digital Services,LA INTERNATIONAL COMP CONSULTANTS L,,Large,,5106305105,Contingent Labour,ST1 5UB,"12,000.00",
DLUHC,PINS,13/12/2023,Agency Staff,Resourcing & Process,REED SPECIALIST RECRUITMENT LTD,,Large,,5106305029,Contingent Labour,SW20 0BA,735.80,
DLUHC,PINS,13/12/2023,DEV Exp (AUC) Intngble Software Acq Cost,PINS Capital X085A011,Kin&Carta Partnerships Uk Ltd,,Micro,,5106305138,SoW021 Applications FO Oct - Dec 23,N1 9BE,"154,308.00",
DLUHC,PINS,13/12/2023,DEV Exp (AUC) Intngble Software Acq Cost,PINS Capital X085A011,Kin&Carta Partnerships Uk Ltd,,Micro,,5106305139,SoW020 Appeals Front Office Oct - Dec 23,N1 9BE,"70,393.20",
DLUHC,PINS,13/12/2023,DEV Exp (AUC) Intngble Software Acq Cost,PINS Capital X085A011,LA INTERNATIONAL COMP CONSULTANTS L,,Large,,5106305101,Software Developer,ST1 5UB,"11,655.00",
DLUHC,PINS,13/12/2023,Office Supplies,Change Portfolio Workstreams,GAZELLE OFFICE FURNITURE LTD,,Micro,,5106305128,Electrics,BS5 0DR,"4,988.40",
DLUHC,PINS,13/12/2023,PADS Fees & Expenses,Inspectors Costs,REDACTED,,Micro,,5106305133,PADS Fees and Expenses,PO20 0HX,"1,002.00",
DLUHC,PINS,13/12/2023,PADS Fees & Expenses,Inspectors Costs,REDACTED,,Micro,,5106305066,PADS Fees and Expenses,DY12 2AE,504.06,
DLUHC,PINS,13/12/2023,PADS Fees & Expenses,Inspectors Costs,REDACTED,,Micro,,5106305109,PADS Fees and Expenses,DY12 2AE,456.00,
DLUHC,PINS,13/12/2023,PADS Fees & Expenses,Inspectors Costs,REDACTED,,Data Not Provided,,5106305127,PADS Fees and Expenses,WR10 3HA,"3,207.70",
DLUHC,PINS,13/12/2023,PADS Fees & Expenses,Inspectors Costs,REDACTED,,Data Not Provided,,5106305093,PADS Fees and Expenses,LU7 3RF,"2,285.40",
DLUHC,PINS,13/12/2023,PADS Fees & Expenses,Inspectors Costs,REDACTED,,Data Not Provided,,5106305097,PADS Fees and Expenses,LU7 3RF,"2,394.30",
DLUHC,PINS,13/12/2023,PADS Fees & Expenses,Inspectors Costs,REDACTED,,Small,,5106305107,PADS Fees and Expenses,WR9 0QE,"3,745.73",
DLUHC,PINS,13/12/2023,PADS Fees & Expenses,Inspectors Costs,REDACTED,,Micro,,5106305136,PADS Fees and Expenses,NP44 6JD,570.00,
DLUHC,PINS,13/12/2023,Software Licences,Digital Services,PHOENIX SOFTWARE,,Medium,,5106305104,Toad Data Modeller 24-25,YO42 1NS,571.68,
DLUHC,PINS,14/12/2023,Agency Staff,Digital Services,HAYS SPECIALIST RECRUITMENT LTD,,Large,,5106305181,Contingent Labour,NW1 2AF,"1,682.35",
DLUHC,PINS,14/12/2023,DEV Exp (AUC) Intngble Software Acq Cost,PINS Capital X085A011,HAYS SPECIALIST RECRUITMENT LTD,,Large,,5106305179,Software Developer,NW1 2AF,"3,611.28",
DLUHC,PINS,14/12/2023,DEV Exp (AUC) Intngble Software Acq Cost,PINS Capital X085A011,HAYS SPECIALIST RECRUITMENT LTD,,Large,,5106305186,Software Tester,NW1 2AF,"2,242.14",
DLUHC,PINS,14/12/2023,DEV Exp (AUC) Intngble Software Acq Cost,PINS Capital X085A011,HAYS SPECIALIST RECRUITMENT LTD,,Large,,5106305187,Software Tester,NW1 2AF,"2,104.14",
DLUHC,PINS,14/12/2023,DEV Exp (AUC) Intngble Software Acq Cost,PINS Capital X085A011,Kin&Carta Partnerships Uk Ltd,,Micro,,5106305155,SoW025 ODW Oct - Dec 23,N1 9BE,"95,436.00",
DLUHC,PINS,14/12/2023,PADS Fees & Expenses,Inspectors Costs,REDACTED,,Micro,,5106305149,PADS Fees and Expenses,M32 8QU,"3,388.50",
DLUHC,PINS,14/12/2023,PADS Fees & Expenses,Inspectors Costs,REDACTED,,Micro,,5106305161,PADS Fees and Expenses,HX7 7LS,"1,228.80",
DLUHC,PINS,14/12/2023,PADS Fees & Expenses,Inspectors Costs,REDACTED,,Data Not Provided,,5106305147,PADS Fees and Expenses,GU21 4DA,"1,355.00",
DLUHC,PINS,14/12/2023,PADS Fees & Expenses,Inspectors Costs,REDACTED,,Micro,,5106305156,PADS Fees and Expenses,NP44 6JD,"1,616.00",
DLUHC,PINS,14/12/2023,Specialist Technical Support,Project Speed,HAYS SPECIALIST RECRUITMENT LTD,,Large,,5106305182,Data Architect,NW1 2AF,"4,375.32",
DLUHC,PINS,14/12/2023,Vehicle hire,Inspectors Costs,ENTERPRISE RENT-A-CAR,,Large,,5106305154,Damage to Hire Car,TW20 9FB,"1,548.24",
DLUHC,PINS,15/12/2023,Agency Staff,Human Resources,HAYS SPECIALIST RECRUITMENT LTD,,Large,,5106305200,Contingent Labour,NW1 2AF,418.21,
DLUHC,PINS,15/12/2023,Agency Staff,Digital Services,HAYS SPECIALIST RECRUITMENT LTD,,Large,,5106305188,Contingent Labour,NW1 2AF,"2,993.28",
DLUHC,PINS,15/12/2023,DEV Exp (AUC) Intngble Software Acq Cost,PINS Capital X085A011,HAYS SPECIALIST RECRUITMENT LTD,,Large,,5106305189,Test Engineer,NW1 2AF,"2,392.14",
DLUHC,PINS,15/12/2023,DEV Exp (AUC) Intngble Software Acq Cost,PINS Capital X085A011,HAYS SPECIALIST RECRUITMENT LTD,,Large,,5106305190,Interaction Designer ,NW1 2AF,"3,911.28",
DLUHC,PINS,15/12/2023,DEV Exp (AUC) Intngble Software Acq Cost,PINS Capital X085A011,HAYS SPECIALIST RECRUITMENT LTD,,Large,,5106305191,CMS Developer  ,NW1 2AF,"3,385.08",
DLUHC,PINS,15/12/2023,DEV Exp (AUC) Intngble Software Acq Cost,PINS Capital X085A011,HAYS SPECIALIST RECRUITMENT LTD,,Large,,5106305201,Lead Product Manager  ,NW1 2AF,"4,635.42",
DLUHC,PINS,15/12/2023,DEV Exp (AUC) Intngble Software Acq Cost,PINS Capital X085A011,HAYS SPECIALIST RECRUITMENT LTD,,Large,,5106305286,Lead Product Manager  ,NW1 2AF,"-4,635.42",
DLUHC,PINS,15/12/2023,DEV Exp (AUC) Intngble Software Acq Cost,PINS Capital X085A011,HAYS SPECIALIST RECRUITMENT LTD,,Large,,5106305287,Lead Product Manager  ,NW1 2AF,"-4,635.42",
DLUHC,PINS,15/12/2023,DEV Exp (AUC) Intngble Software Acq Cost,PINS Capital X085A011,HAYS SPECIALIST RECRUITMENT LTD,,Large,,5106305298,Business Analyst  ,NW1 2AF,"3,124.22",
DLUHC,PINS,15/12/2023,"IT - PC, Network & Hardware",Digital Services,X M A LTD,,Data Not Provided,,5106305297,Hardware & Hardware Services,NG11 7EP,"2,748.06",
DLUHC,PINS,15/12/2023,PADS Fees & Expenses,Inspectors Costs,REDACTED,,Small,,5106305208,PADS Fees and Expenses,SA61 2SJ,"3,610.00",
DLUHC,PINS,15/12/2023,PADS Fees & Expenses,Inspectors Costs,REDACTED,,Micro,,5106305210,PADS Fees and Expenses,LS3 1JY,"3,674.60",
DLUHC,PINS,15/12/2023,Physical Storage,Finance,Restore PLC,,Large,,5106305020,Offsite file storage 2022-2023,RH1 5DY,"1,821.11",
DLUHC,PINS,18/12/2023,DEV Exp (AUC) Intngble Software Acq Cost,PINS Capital X085A011,Kin&Carta Partnerships Uk Ltd,,Micro,,5106305358,SoW023 Appeals BO Oct - Dec 23,N1 9BE,"177,870.00",
DLUHC,PINS,18/12/2023,DEV Exp (AUC) Intngble Software Acq Cost,PINS Capital X085A011,Kin&Carta Partnerships Uk Ltd,,Micro,,5106305359,SoW024 Appeals Back Office Oct - Dec 23,N1 9BE,"26,558.40",
DLUHC,PINS,18/12/2023,DEV Exp (AUC) Intngble Software Acq Cost,PINS Capital X085A011,Kin&Carta Partnerships Uk Ltd,,Micro,,5106305359,SoW024 Appeals Front Office Oct - Dec 23,N1 9BE,"26,558.40",
DLUHC,PINS,18/12/2023,DEV Exp (AUC) Intngble Software Acq Cost,PINS Capital X085A011,Kin&Carta Partnerships Uk Ltd,,Micro,,5106305359,SoW024 Applications Back Office Oct - De,N1 9BE,"26,558.40",
DLUHC,PINS,18/12/2023,DEV Exp (AUC) Intngble Software Acq Cost,PINS Capital X085A011,Kin&Carta Partnerships Uk Ltd,,Micro,,5106305359,SoW024 Applications Front Office Oct - D,N1 9BE,"26,558.40",
DLUHC,PINS,18/12/2023,DEV Exp (AUC) Intngble Software Acq Cost,PINS Capital X085A011,Kin&Carta Partnerships Uk Ltd,,Micro,,5106305360,SoW022 Applications BO Oct - Dec 23,N1 9BE,"173,844.00",
DLUHC,PINS,18/12/2023,PADS Fees & Expenses,Inspectors Costs,REDACTED,,Data Not Provided,,5106305311,PADS Fees and Expenses,CB3 0HS,"2,599.20",
DLUHC,PINS,18/12/2023,PADS Fees & Expenses,Inspectors Costs,REDACTED,,Micro,,5106305349,PADS Fees and Expenses,GL6 0SA,"1,595.15",
DLUHC,PINS,18/12/2023,PADS Fees & Expenses,Inspectors Costs,REDACTED,,Micro,,5106305314,PADS Fees and Expenses,CT2 7ET,"1,900.00",
DLUHC,PINS,18/12/2023,PADS Fees & Expenses,Inspectors Costs,REDACTED,,Small,,5106305354,PADS Fees and Expenses,SA61 2SJ,537.25,
DLUHC,PINS,19/12/2023,Agency Staff,Finance,REED SPECIALIST RECRUITMENT LTD,,Large,,5106305384,Contingent Labour,SW20 0BA,"1,764.00",
DLUHC,PINS,19/12/2023,Agency Staff,Finance,REED SPECIALIST RECRUITMENT LTD,,Large,,5106305394,Contingent Labour,SW20 0BA,653.20,
DLUHC,PINS,19/12/2023,Agency Staff,Finance,REED SPECIALIST RECRUITMENT LTD,,Large,,5106305428,Contingent Labour,SW20 0BA,915.52,
DLUHC,PINS,19/12/2023,PADS Fees & Expenses,Inspectors Costs,REDACTED,,Micro,,5106305385,PADS Fees and Expenses,WR5 2AG,"3,994.26",
DLUHC,PINS,19/12/2023,PADS Fees & Expenses,Inspectors Costs,REDACTED,,Micro,,5106305383,PADS Fees and Expenses,PO20 0HX,"1,393.38",
DLUHC,PINS,19/12/2023,PADS Fees & Expenses,Inspectors Costs,REDACTED,,Small,,5106305392,PADS Fees and Expenses,WS13 7DH,"1,500.50",
DLUHC,PINS,19/12/2023,PADS Fees & Expenses,Inspectors Costs,REDACTED,,Micro,,5106305387,PADS Fees and Expenses,CT2 8DR,"3,181.75",
DLUHC,PINS,19/12/2023,Recruitment,Human Resources,MICHAEL PAGE INTN'TL RECRUITMENT LT,,Large,,5106305396,Recruitment Services,SL1 1QP,"4,415.53",
DLUHC,PINS,19/12/2023,Recruitment,Human Resources,MICHAEL PAGE INTN'TL RECRUITMENT LT,,Large,,5106305399,Recruitment Services,SL1 1QP,"4,876.21",
DLUHC,PINS,20/12/2023,Agency Staff,Innovation & Improvement,REED SPECIALIST RECRUITMENT LTD,,Large,,5106305027,Contingent Labour,SW20 0BA,721.14,
DLUHC,PINS,20/12/2023,PADS Fees & Expenses,Inspectors Costs,REDACTED,,Micro,,5106305442,PADS Fees and Expenses,DY12 2AE,816.00,
DLUHC,PINS,20/12/2023,PADS Fees & Expenses,Inspectors Costs,REDACTED,,Micro,,5106305448,PADS Fees and Expenses,CT21 6DA,750.00,
DLUHC,PINS,20/12/2023,PADS Fees & Expenses,Inspectors Costs,REDACTED,,Data Not Provided,,5106305440,PADS Fees and Expenses,CF14 1QB,"5,778.20",
DLUHC,PINS,20/12/2023,Training,Director of Operations,Ernst & Young LLP,,Large,,5106305447,ET coaching sessions,SE1 2AF,367.67,
DLUHC,PINS,21/12/2023,Advertising,Operations Group 2,PeopleScout Limited,,Large,,5106305497,Statutory Advertising  ,W1T 7RQ,682.68,
DLUHC,PINS,21/12/2023,Agency Staff,Digital Services,HAYS SPECIALIST RECRUITMENT LTD,,Large,,5106305505,Contingent Labour,NW1 2AF,"1,795.97",
DLUHC,PINS,21/12/2023,DEV Exp (AUC) Intngble Software Acq Cost,PINS Capital X085A011,HAYS SPECIALIST RECRUITMENT LTD,,Large,,5106305480,CMS Developer  ,NW1 2AF,"3,385.08",
DLUHC,PINS,21/12/2023,DEV Exp (AUC) Intngble Software Acq Cost,PINS Capital X085A011,HAYS SPECIALIST RECRUITMENT LTD,,Large,,5106305483,Software Tester,NW1 2AF,"2,104.14",
DLUHC,PINS,21/12/2023,DEV Exp (AUC) Intngble Software Acq Cost,PINS Capital X085A011,HAYS SPECIALIST RECRUITMENT LTD,,Large,,5106305484,Business Analyst  ,NW1 2AF,"3,124.22",
DLUHC,PINS,21/12/2023,DEV Exp (AUC) Intngble Software Acq Cost,PINS Capital X085A011,HAYS SPECIALIST RECRUITMENT LTD,,Large,,5106305488,Software Developer,NW1 2AF,"3,611.28",
DLUHC,PINS,21/12/2023,DEV Exp (AUC) Intngble Software Acq Cost,PINS Capital X085A011,HAYS SPECIALIST RECRUITMENT LTD,,Large,,5106305496,Test Engineer,NW1 2AF,"2,392.14",
DLUHC,PINS,21/12/2023,DEV Exp (AUC) Intngble Software Acq Cost,PINS Capital X085A011,HAYS SPECIALIST RECRUITMENT LTD,,Large,,5106305565,Interaction Designer ,NW1 2AF,"3,911.28",
DLUHC,PINS,21/12/2023,Mobile phone costs,Digital Services,DAISY CORPORATE SERVICES TRADING LT,,Large,,5106305183,Mobile Costs,BB9 5SR,"-1,965.16",
DLUHC,PINS,21/12/2023,Mobile phone costs,Digital Services,DAISY CORPORATE SERVICES TRADING LT,,Large,,5106305579,Mobile Costs,BB9 5SR,"1,173.54",
DLUHC,PINS,21/12/2023,Mobile phone costs,Digital Services,DAISY CORPORATE SERVICES TRADING LT,,Large,,5106305580,Mobile Costs,BB9 5SR,"1,175.42",
DLUHC,PINS,21/12/2023,PADS Fees & Expenses,Inspectors Costs,REDACTED,,Micro,,5106305564,PADS Fees and Expenses,DE22 2GF,"2,049.24",
DLUHC,PINS,21/12/2023,PADS Fees & Expenses,Inspectors Costs,REDACTED,,Micro,,5106305520,PADS Fees and Expenses,DY12 2AE,816.00,
DLUHC,PINS,21/12/2023,Specialist Technical Support,Project Speed,HAYS SPECIALIST RECRUITMENT LTD,,Large,,5106305479,Data Architect,NW1 2AF,"4,375.32",
DLUHC,PINS,22/12/2023,Agency Staff,Project Speed,LA INTERNATIONAL COMP CONSULTANTS L,,Large,,5106305617,Contingent Labour,ST1 5UB,"1,542.00",
DLUHC,PINS,22/12/2023,Agency Staff,Resourcing & Process,REED SPECIALIST RECRUITMENT LTD,,Large,,5106305391,Contingent Labour,SW20 0BA,582.85,
DLUHC,PINS,22/12/2023,DEV Exp (AUC) Intngble Software Acq Cost,PINS Capital X085A011,HAYS SPECIALIST RECRUITMENT LTD,,Large,,5106305672,Business Analyst  ,NW1 2AF,"-4,035.42",
DLUHC,PINS,22/12/2023,DEV Exp (AUC) Intngble Software Acq Cost,PINS Capital X085A011,HAYS SPECIALIST RECRUITMENT LTD,,Large,,5106305673,Business Analyst  ,NW1 2AF,"2,017.70",
DLUHC,PINS,22/12/2023,DEV Exp (AUC) Intngble Software Acq Cost,PINS Capital X085A011,HAYS SPECIALIST RECRUITMENT LTD,,Large,,5106305673,Business Analyst  ,NW1 2AF,"2,017.72",
DLUHC,PINS,22/12/2023,"IT - PC, Network & Hardware",Digital Services,X M A LTD,,Data Not Provided,,5106305624,Hardware & Hardware Services,NG11 7EP,"1,321.20",
DLUHC,PINS,22/12/2023,IT Maintenance,Digital Services,X M A LTD,,Data Not Provided,,5106305624,Hardware & Hardware Services,NG11 7EP,"1,101.00",
DLUHC,PINS,22/12/2023,PADS Fees & Expenses,Inspectors Costs,REDACTED,,Data Not Provided,,5106305597,PADS Fees and Expenses,DE23 8DP,"1,978.25",
DLUHC,PINS,22/12/2023,PADS Fees & Expenses,Inspectors Costs,REDACTED,,Micro,,5106305589,PADS Fees and Expenses,HG4 1UJ,"3,738.84",
DLUHC,PINS,22/12/2023,PADS Fees & Expenses,Inspectors Costs,REDACTED,,Small,,5106305592,PADS Fees and Expenses,RG24 8SA,"1,900.00",
DLUHC,PINS,22/12/2023,PADS Fees & Expenses,Inspectors Costs,REDACTED,,Micro,,2100117651,PADS Fees and Expenses,BH15 1HH,"-2,980.08",
DLUHC,PINS,22/12/2023,PADS Fees & Expenses,Inspectors Costs,REDACTED,,Micro,,5106305639,PADS Fees and Expenses,BH15 1HH,"2,980.08",
DLUHC,PINS,22/12/2023,PADS Fees & Expenses,Inspectors Costs,REDACTED,,Small,,2100117649,PADS Fees and Expenses,SA61 2SJ,"-3,569.80",
DLUHC,PINS,22/12/2023,PADS Fees & Expenses,Inspectors Costs,REDACTED,,Small,,5106305594,PADS Fees and Expenses,SA61 2SJ,"3,569.80",
DLUHC,PINS,22/12/2023,PADS Fees & Expenses,Inspectors Costs,REDACTED,,Micro,,5106305600,PADS Fees and Expenses,LS3 1JY,"2,818.25",
DLUHC,PINS,22/12/2023,Specialist Technical Support,Project Speed,HAYS SPECIALIST RECRUITMENT LTD,,Large,,5106305650,Data Architect,NW1 2AF,"-4,375.32",
DLUHC,PINS,22/12/2023,Specialist Technical Support,Project Speed,HAYS SPECIALIST RECRUITMENT LTD,,Large,,5106305651,Data Architect,NW1 2AF,"4,375.32",
DLUHC,PINS,22/12/2023,Specialist Technical Support,Project Speed,LA INTERNATIONAL COMP CONSULTANTS L,,Large,,5106305617,Service Designer,ST1 5UB,"10,023.00",
DLUHC,PINS,27/12/2023,Courier Services,Finance,PARCELFORCE WORLDWIDE,,Large,,5106305638,Courier Services 2023/2024,MK7 8LE,"1,761.65",
DLUHC,PINS,27/12/2023,Courier Services,Finance,PARCELFORCE WORLDWIDE,,Large,,5106305640,Courier Services 2023/2024,MK7 8LE,358.56,
DLUHC,PINS,27/12/2023,DEV Exp (AUC) Intngble Software Acq Cost,PINS Capital X085A011,HAYS SPECIALIST RECRUITMENT LTD,,Large,,5106305674,Business Analyst  ,NW1 2AF,"2,017.70",
DLUHC,PINS,27/12/2023,DEV Exp (AUC) Intngble Software Acq Cost,PINS Capital X085A011,HAYS SPECIALIST RECRUITMENT LTD,,Large,,5106305674,Business Analyst  ,NW1 2AF,"2,017.72",
DLUHC,PINS,27/12/2023,PADS Fees & Expenses,Inspectors Costs,REDACTED,,Small,,5106305641,PADS Fees and Expenses,BH14 8RX,"2,324.94",
DLUHC,PINS,27/12/2023,PADS Fees & Expenses,Inspectors Costs,REDACTED,,Small,,5106305679,PADS Fees and Expenses,SA61 2SJ,"3,564.65",
DLUHC,PINS,27/12/2023,Vehicle hire,Inspectors Costs,ENTERPRISE RENT-A-CAR,,Large,,5106305642,Damage to Hire Car,TW20 9FB,"2,634.47",
DLUHC,PINS,28/12/2023,Agency Staff,Human Resources,HAYS SPECIALIST RECRUITMENT LTD,,Large,,5106305696,Contingent Labour,NW1 2AF,418.21,
DLUHC,PINS,28/12/2023,Agency Staff,Human Resources,HAYS SPECIALIST RECRUITMENT LTD,,Large,,5106305697,Contingent Labour,NW1 2AF,418.21,
DLUHC,PINS,28/12/2023,Agency Staff,Finance,REED SPECIALIST RECRUITMENT LTD,,Large,,5106305682,Contingent Labour,SW20 0BA,653.20,
DLUHC,PINS,28/12/2023,Agency Staff,Finance,REED SPECIALIST RECRUITMENT LTD,,Large,,5106305683,Contingent Labour,SW20 0BA,"1,764.00",
DLUHC,PINS,28/12/2023,DEV Exp (AUC) Intngble Software Acq Cost,PINS Capital X085A011,HAYS SPECIALIST RECRUITMENT LTD,,Large,,5106305691,Lead Product Manager  ,NW1 2AF,"4,635.42",
DLUHC,PINS,29/12/2023,Agency Staff,Innovation & Improvement,HAYS SPECIALIST RECRUITMENT LTD,,Large,,5106305690,Contingent Labour,NW1 2AF,720.00,
DLUHC,PINS,29/12/2023,Agency Staff,Innovation & Improvement,HAYS SPECIALIST RECRUITMENT LTD,,Large,,5106305704,Contingent Labour,NW1 2AF,720.00,
DLUHC,PINS,29/12/2023,Agency Staff,Resourcing & Process,REED SPECIALIST RECRUITMENT LTD,,Large,,5106305681,Contingent Labour,SW20 0BA,582.85,
DLUHC,PINS,29/12/2023,Agency Staff,Innovation & Improvement,REED SPECIALIST RECRUITMENT LTD,,Large,,5106305695,Contingent Labour,SW20 0BA,721.14,
DLUHC,PINS,29/12/2023,Agency Staff,Innovation & Improvement,REED SPECIALIST RECRUITMENT LTD,,Large,,5106305708,Contingent Labour,SW20 0BA,735.62,
